bitfinex-derivatives/quotes_SOLF0:USTF0_20250319
["timestamp","ask_amount","ask_price","bid_price","bid_amount"]
[1742401469982,29.96,131.59,131.49,41.13065122]
[1742401470282,0.04836756,131.55,131.53,0.04908153]
[1742401470479,0.04836756,131.55,131.54,7.6013]
[1742401471078,293.9354,131.61,131.53,30.00908153]
[1742401471280,293.9354,131.61,131.53,29.96]
[1742401471479,328.82595122,131.61,131.53,29.96]
[1742401471785,7.6004,131.56,131.53,29.96]
[1742401472186,0.05387731,131.56,131.53,30.01182277]
[1742401472889,0.05387731,131.56,131.53,37.61362277]
[1742401473185,0.05387731,131.56,131.53,30.01182277]
[1742401473389,0.05387731,131.56,131.54,7.601]
[1742401473690,313.81657338,131.61,131.53,30.01182277]
[1742401473880,321.41427338,131.61,131.55,7.6003]
[1742401474187,321.41427338,131.61,131.53,29.96]
[1742401474687,321.41427338,131.61,131.55,7.6005]
[1742401474889,0.05683571,131.58,131.56,0.05330682]
[1742401475388,0.05683571,131.58,131.56,7.65330682]
[1742401476196,0.05683571,131.58,131.57,7.5996]
[1742401479097,57.26015302,131.65,131.61,7.5971]
[1742401479493,57.26015302,131.65,131.59,7.5982]
[1742401479696,21.83657338,131.63,131.59,7.5982]
[1742401479898,21.83657338,131.63,131.57,2.1391]
[1742401480096,21.83657338,131.63,131.6,0.05482847]
[1742401480097,30.02953618,131.62,131.6,0.05482847]
[1742401480500,37.62653618,131.62,131.6,0.05482847]
[1742401481403,30.02953618,131.62,131.6,0.05482847]
[1742401481598,0.04953618,131.62,131.6,0.05482847]
[1742401481903,0.04953618,131.62,131.6,7.65232847]
[1742401482199,0.04953618,131.62,131.6,0.05482847]
[1742401482798,0.04953618,131.62,131.61,7.5972]
[1742401483700,1.51917964,131.65,131.6,0.05482847]
[1742401484602,1.51917964,131.65,131.6,21.89140185]
[1742401484796,0.05261515,131.64,131.6,21.89140185]
[1742401485203,0.05261515,131.64,131.61,3.921]
[1742401485403,0.05261515,131.64,131.63,7.5961]
[1742401485600,0.05261515,131.64,131.6,0.05482847]
[1742401486104,7.5965,131.63,131.6,0.05482847]
[1742401486307,0.05261515,131.64,131.6,0.05482847]
[1742401486905,7.5965,131.63,131.6,0.05482847]
[1742401487299,7.5967,131.62,131.6,0.05482847]
[1742401487701,0.05261515,131.64,131.6,0.05482847]
[1742401487901,7.5964,131.63,131.6,0.05482847]
[1742401488102,0.05261515,131.64,131.6,0.05482847]
[1742401488401,0.05261515,131.64,131.6,7.65232847]
[1742401488601,0.05261515,131.64,131.61,29.96]
[1742401489706,0.05261515,131.64,131.62,2.0722]
[1742401489907,0.05261515,131.64,131.63,7.5961]
[1742401490303,0.05261515,131.64,131.62,2.0722]
[1742401490505,7.64841515,131.64,131.62,2.0722]
[1742401492610,7.5961,131.63,131.62,2.0722]
[1742401492810,0.05261515,131.64,131.62,2.0722]
[1742401493106,7.64851515,131.64,131.62,2.0722]
[1742401493605,0.05261515,131.64,131.62,2.0722]
[1742401493812,7.5961,131.63,131.62,2.0722]
[1742401494310,7.5961,131.63,131.61,32.0061]
[1742401494510,7.5967,131.62,131.61,32.0061]
[1742401494809,7.5967,131.62,131.6,0.05482847]
[1742401495209,7.5972,131.61,131.6,0.05482847]
[1742401495511,0.05261515,131.64,131.6,7.65262847]
[1742401495713,7.5971,131.62,131.6,0.05482847]
[1742401495909,0.05261515,131.64,131.6,0.05482847]
[1742401498011,7.5962,131.63,131.6,7.65242847]
[1742401498212,0.05261515,131.64,131.6,7.65242847]
[1742401498405,0.05261515,131.64,131.6,0.05482847]
[1742401499215,0.05261515,131.64,131.6,7.65232847]
[1742401499516,0.05261515,131.64,131.6,0.05482847]
[1742401500917,7.5972,131.61,131.6,0.05482847]
[1742401501816,0.05261515,131.64,131.6,0.05482847]
[1742401502021,7.5972,131.61,131.6,0.05482847]
[1742401502221,0.05261515,131.64,131.6,0.05482847]
[1742401502518,0.05261515,131.64,131.61,7.5971]
[1742401502715,0.05261515,131.64,131.6,0.05482847]
[1742401503118,7.5967,131.62,131.6,0.05482847]
[1742401504518,7.5967,131.62,131.6,7.65262847]
[1742401504922,7.5972,131.61,131.6,0.05482847]
[1742401507523,29.43377338,131.61,131.6,2.847e-05]
[1742401507922,29.43657338,131.61,131.53,7.6016]
[1742401508223,21.83657338,131.59,131.52,29.94]
[1742401508423,7.601,131.55,131.52,29.94]
[1742401508725,7.601,131.55,131.52,7.602]
[1742401509124,0.04791198,131.55,131.52,0.05158188]
[1742401509523,7.64891198,131.55,131.52,7.65398188]
[1742401510223,0.04791198,131.55,131.52,7.65398188]
[1742401511527,0.04791198,131.55,131.52,0.05158188]
[1742401511827,29.98791198,131.55,131.52,0.05158188]
[1742401512121,7.6019,131.53,131.52,0.05158188]
[1742401512428,21.83657338,131.54,131.48,29.94]
[1742401512619,21.83657338,131.54,131.46,27.92347338]
[1742401512817,21.83657338,131.54,131.47,29.94]
[1742401513328,21.83657338,131.54,131.49,7.6041]
[1742401513621,0.05035266,131.52,131.49,7.65422611]
[1742401514023,0.05035266,131.52,131.5,7.6033]
[1742401514231,0.05035266,131.52,131.49,0.05012611]
[1742401515931,7.65285266,131.52,131.49,0.05012611]
[1742401516431,7.603,131.51,131.49,0.05012611]
[1742401516626,0.05035266,131.52,131.49,0.05012611]
[1742401516931,7.65315266,131.52,131.49,0.05012611]
[1742401517631,7.6032,131.51,131.49,0.05012611]
[1742401519330,7.65305266,131.52,131.49,0.05012611]
[1742401520130,7.6031,131.51,131.49,0.05012611]
[1742401520932,7.6036,131.5,131.49,0.05012611]
[1742401521537,7.6033,131.51,131.49,0.05012611]
[1742401521728,51.82692604,131.52,131.49,0.05012611]
[1742401522531,7.6035,131.51,131.49,0.05012611]
[1742401522729,51.82692604,131.52,131.49,0.05012611]
[1742401523234,7.6036,131.5,131.49,0.05012611]
[1742401523736,29.44017338,131.5,131.49,0.05012611]
[1742401524530,29.44017338,131.5,131.49,2.611e-05]
[1742401524833,7.606,131.46,131.42,6.0751]
[1742401525021,7.606,131.46,131.43,7.6074]
[1742401525534,51.79657338,131.46,131.37,51.79657338]
[1742401525831,51.79657338,131.46,131.38,6.1311]
[1742401526030,0.05102488,131.43,131.4,0.05083332]
[1742401526232,0.05102488,131.43,131.4,29.99083332]
[1742401526531,0.05102488,131.43,131.42,7.6082]
[1742401526922,0.05102488,131.43,131.4,29.99083332]
[1742401527322,0.05102488,131.43,131.42,7.6082]
[1742401527731,29.94,131.49,131.41,21.83657338]
[1742401527922,7.6045,131.49,131.46,7.6057]
[1742401528728,7.6045,131.49,131.47,7.6053]
[1742401528932,7.6622135,131.49,131.46,0.05042256]
[1742401529234,7.6622135,131.49,131.46,7.65602256]
[1742401529430,0.0577135,131.49,131.46,0.05042256]
[1742401529933,7.605,131.48,131.46,0.05042256]
[1742401530937,7.6622135,131.49,131.46,7.65632256]
[1742401531443,0.0577135,131.49,131.47,29.96]
[1742401531628,2.1461,131.56,131.47,51.79657338]
[1742401532239,284.17657338,131.57,131.49,21.83657338]
[1742401532436,284.17657338,131.57,131.5,29.96]
[1742401532737,7.6009,131.55,131.52,7.6021]
[1742401532937,7.64991574,131.55,131.52,7.65492048]
[1742401533338,7.64991574,131.55,131.53,7.6018]
[1742401533635,7.64991574,131.55,131.52,0.05282048]
[1742401533836,7.64991574,131.55,131.52,7.65502048]
[1742401534033,0.04901574,131.55,131.52,0.05282048]
[1742401534240,0.04901574,131.55,131.53,29.94]
[1742401534540,0.04901574,131.55,131.54,7.6013]
[1742401535138,0.04901574,131.55,131.53,37.5417]
[1742401536034,0.04901574,131.55,131.54,7.6013]
[1742401538236,0.04901574,131.55,131.53,32.0411]
[1742401538436,0.04901574,131.55,131.53,2.1011]
[1742401538632,21.83657338,131.64,131.54,21.83657338]
[1742401538836,21.83657338,131.64,131.56,21.83657338]
[1742401539136,21.83657338,131.62,131.57,29.94]
[1742401539330,21.83657338,131.62,131.56,29.94]
[1742401539838,0.04900518,131.6,131.58,0.05486588]
[1742401540340,0.04900518,131.6,131.58,7.65356588]
[1742401540938,0.04900518,131.6,131.59,7.5984]
[1742401542440,0.04900518,131.6,131.59,37.5184]
[1742401542636,1.51917964,131.65,131.59,29.92]
[1742401542838,21.83657338,131.64,131.59,29.92]
[1742401543038,7.5964,131.63,131.59,29.92]
[1742401543242,7.5964,131.63,131.59,37.5183]
[1742401543640,7.5967,131.62,131.59,29.92]
[1742401543842,7.61696779,131.62,131.6,0.04823252]
[1742401544043,0.02026779,131.62,131.6,0.04823252]
[1742401544348,7.5972,131.61,131.6,0.04823252]
[1742401548552,7.61726779,131.62,131.6,0.04823252]
[1742401548742,0.02026779,131.62,131.6,0.04823252]
[1742401548951,7.5972,131.61,131.6,0.04823252]
[1742401556055,21.85684117,131.62,131.6,0.04823252]
[1742401556358,0.02026779,131.62,131.6,0.04823252]
[1742401557459,7.5972,131.61,131.6,0.04823252]
[1742401559055,21.56573636,131.61,131.6,0.04823252]
[1742401559257,13.96853636,131.61,131.6,0.04823252]
[1742401560358,7.5972,131.61,131.6,0.04823252]
[1742401560858,21.58580415,131.62,131.6,0.04823252]
[1742401561560,7.5972,131.61,131.6,0.04823252]
[1742401561763,13.98880415,131.62,131.6,29.94823252]
[1742401562359,7.5972,131.61,131.6,29.94823252]
[1742401562659,21.56573636,131.61,131.6,0.04823252]
[1742401565761,21.56573636,131.61,131.6,3.252e-05]
[1742401566062,7.6001,131.57,131.55,29.9]
[1742401566360,13.96853636,131.57,131.55,29.9]
[1742401566665,7.6001,131.56,131.53,262.3]
[1742401566854,21.56863636,131.56,131.53,269.9015]
[1742401567059,21.56863636,131.56,131.54,29.9]
[1742401567060,14.02228953,131.56,131.54,29.9]
[1742401567266,21.62268953,131.56,131.54,29.9]
[1742401569761,14.02228953,131.56,131.53,0.05395229]
[1742401570066,13.96853636,131.54,131.53,0.05395229]
[1742401570266,21.56983636,131.54,131.53,0.05395229]
[1742401570465,7.6013,131.54,131.53,0.05395229]
[1742401570666,13.96853636,131.55,131.53,0.05395229]
[1742401570870,7.6013,131.54,131.53,0.05395229]
[1742401571064,21.56983636,131.54,131.53,0.05395229]
[1742401575873,21.62268953,131.56,131.53,7.65545229]
[1742401576171,0.05375317,131.56,131.54,29.9]
[1742401576669,0.05375317,131.56,131.54,37.501]
[1742401576866,14.02228953,131.56,131.54,29.9]
[1742401577071,21.56923636,131.55,131.54,29.9]
[1742401577668,7.6013,131.54,131.53,29.95395229]
[1742401577869,13.96853636,131.55,131.53,29.95395229]
[1742401578070,21.62258953,131.56,131.53,29.95395229]
[1742401578467,14.02228953,131.56,131.53,29.95395229]
[1742401578670,0.05375317,131.56,131.53,29.95395229]
[1742401579571,0.05375317,131.56,131.54,7.601]
[1742401581478,0.05375317,131.56,131.55,7.6007]
[1742401581768,0.05375317,131.56,131.53,43.92248865]
[1742401581969,14.02228953,131.56,131.53,29.95395229]
[1742401582169,14.02228953,131.56,131.53,37.55545229]
[1742401582369,14.02228953,131.56,131.53,29.95395229]
[1742401582776,14.02228953,131.56,131.54,7.601]
[1742401582975,14.02228953,131.56,131.53,29.95395229]
[1742401583375,14.02228953,131.56,131.55,7.6007]
[1742401583772,14.02228953,131.56,131.53,29.95395229]
[1742401584472,21.62268953,131.56,131.53,29.95395229]
[1742401584974,21.62268953,131.56,131.54,7.6012]
[1742401585377,21.62268953,131.56,131.53,29.95395229]
[1742401586376,21.62268953,131.56,131.54,7.6009]
[1742401587078,14.02228953,131.56,131.54,7.6009]
[1742401587380,0.05375317,131.56,131.55,7.6007]
[1742401596286,0.05375317,131.56,131.54,21.56953636]
[1742401596488,7.65425317,131.56,131.54,21.56953636]
[1742401596684,0.05375317,131.56,131.53,37.55555229]
[1742401596988,0.05375317,131.56,131.54,29.86]
[1742401597288,0.05375317,131.56,131.53,7.65555229]
[1742401597489,0.05375317,131.56,131.54,29.86]
[1742401597787,0.05375317,131.56,131.54,37.4612]
[1742401597982,0.05375317,131.56,131.54,29.86]
[1742401598185,0.05375317,131.56,131.55,13.96853636]
[1742401598388,0.05375317,131.56,131.55,21.56923636]
[1742401600193,0.05375317,131.56,131.55,7.6007]
[1742401602695,13.96853636,131.63,131.55,13.96853636]
[1742401602895,13.96853636,131.63,131.58,13.96853636]
[1742401603099,7.5976,131.61,131.59,29.86]
[1742401603293,13.96853636,131.63,131.59,29.86]
[1742401603494,13.96853636,131.61,131.59,29.86]
[1742401603694,7.5978,131.6,131.59,29.86]
[1742401604000,13.96853636,131.61,131.59,29.91460916]
[1742401604196,7.5969,131.62,131.59,29.91460916]
[1742401604497,7.5969,131.62,131.59,37.51260916]
[1742401604796,7.5972,131.62,131.59,37.51260916]
[1742401605797,21.56493636,131.63,131.59,29.91460916]
[1742401606095,13.96853636,131.63,131.59,29.91460916]
[1742401606797,292.08,131.66,131.59,29.91460916]
[1742401606996,13.96853636,131.61,131.59,29.91460916]
[1742401607296,21.56603636,131.61,131.59,29.91460916]
[1742401607498,13.96853636,131.61,131.59,29.91460916]
[1742401607796,13.96853636,131.61,131.59,37.51280916]
[1742401607997,21.56563636,131.62,131.59,37.51280916]
[1742401608198,13.96853636,131.62,131.59,37.51280916]
[1742401608795,13.96853636,131.62,131.59,29.91460916]
[1742401608796,7.5976,131.61,131.59,29.91460916]
[1742401609293,13.96853636,131.62,131.59,37.51290916]
[1742401609497,21.56553636,131.62,131.59,37.51290916]
[1742401609697,13.96853636,131.62,131.59,37.51290916]
[1742401609996,21.56553636,131.62,131.59,37.51290916]
[1742401610197,21.56553636,131.62,131.59,29.91460916]
[1742401611296,21.56553636,131.62,131.59,37.51260916]
[1742401612699,7.5973,131.61,131.59,37.51260916]
[1742401613998,7.5973,131.61,131.59,29.91460916]
[1742401614804,7.5978,131.6,131.59,29.91460916]
[1742401615702,7.5976,131.61,131.59,29.91460916]
[1742401616606,7.5978,131.6,131.59,29.91460916]
[1742401618812,7.5977,131.61,131.59,29.91460916]
[1742401619512,7.5978,131.6,131.59,29.91460916]
[1742401621615,7.5975,131.61,131.59,29.91460916]
[1742401622312,7.5969,131.62,131.59,37.51260916]
[1742401622617,13.96853636,131.63,131.59,37.51260916]
[1742401622813,7.5975,131.61,131.59,29.91460916]
[1742401623009,13.96853636,131.63,131.59,29.91460916]
[1742401623612,7.5971,131.62,131.59,37.51270916]
[1742401624018,13.96853636,131.63,131.59,37.51270916]
[1742401624415,13.96853636,131.63,131.59,29.91460916]
[1742401624615,7.5975,131.61,131.59,29.91460916]
[1742401624914,13.96853636,131.63,131.59,29.91460916]
[1742401625419,7.5974,131.61,131.59,37.51280916]
[1742401626220,7.5969,131.62,131.59,37.51280916]
[1742401626621,13.96853636,131.63,131.59,37.51280916]
[1742401626822,13.96853636,131.62,131.59,37.51280916]
[1742401627125,13.96853636,131.63,131.59,37.51280916]
[1742401627322,13.96853636,131.62,131.59,29.91460916]
[1742401627522,7.5976,131.61,131.59,29.91460916]
[1742401627921,7.5976,131.61,131.59,37.51270916]
[1742401628220,21.56553636,131.62,131.59,37.51270916]
[1742401628723,7.5973,131.61,131.59,37.51270916]
[1742401629021,13.96853636,131.63,131.6,7.5978]
[1742401629221,7.5969,131.62,131.59,29.91460916]
[1742401629422,7.5969,131.62,131.59,37.51260916]
[1742401629621,7.5969,131.62,131.59,29.91460916]
[1742401630322,21.56493636,131.63,131.6,7.5975]
[1742401630624,13.96853636,131.63,131.6,7.5975]
[1742401630827,7.5972,131.62,131.59,37.51270916]
[1742401634825,7.5973,131.61,131.59,29.91460916]
[1742401635126,13.96853636,131.63,131.59,29.91460916]
[1742401635325,7.5975,131.61,131.59,29.91460916]
[1742401635819,7.5978,131.6,131.59,29.91460916]
[1742401636324,7.5978,131.6,131.59,0.05460916]
[1742401636526,7.5978,131.6,131.59,29.87460916]
[1742401638030,7.5975,131.61,131.59,29.87460916]
[1742401639026,7.5969,131.62,131.59,37.47270916]
[1742401640426,7.5973,131.61,131.59,37.47270916]
[1742401641529,13.96853636,131.63,131.59,29.87460916]
[1742401641928,7.5973,131.61,131.59,29.87460916]
[1742401646630,7.5978,131.6,131.59,29.87460916]
[1742401648530,7.5975,131.61,131.59,29.87460916]
[1742401650031,7.5975,131.61,131.59,37.47290916]
[1742401650438,7.5968,131.62,131.59,37.47270916]
[1742401650734,13.96853636,131.63,131.59,37.47270916]
[1742401650932,7.5972,131.62,131.59,37.47270916]
[1742401651534,7.5973,131.61,131.59,37.47270916]
[1742401653235,7.597,131.62,131.59,37.47270916]
[1742401655638,7.5973,131.61,131.59,37.47270916]
[1742401656234,7.597,131.62,131.59,37.47270916]
[1742401656736,7.597,131.62,131.6,7.5978]
[1742401656931,7.597,131.62,131.59,29.87460916]
[1742401657236,7.597,131.62,131.6,7.5978]
[1742401657437,7.597,131.62,131.59,43.84314552]
[1742401658140,7.597,131.62,131.59,51.44114552]
[1742401658743,7.597,131.62,131.6,7.5978]
[1742401660740,7.597,131.62,131.59,51.44134552]
[1742401661040,7.597,131.62,131.59,37.47280916]
[1742401661243,7.5973,131.61,131.59,37.47280916]
[1742401661544,7.5973,131.61,131.59,29.87460916]
[1742401661944,7.5973,131.61,131.59,37.47300916]
[1742401662842,7.597,131.62,131.59,37.47300916]
[1742401663042,13.96853636,131.63,131.59,37.47300916]
[1742401663239,7.5968,131.62,131.59,37.47300916]
[1742401663644,13.96853636,131.63,131.59,37.47300916]
[1742401663843,7.5974,131.61,131.59,29.87460916]
[1742401664444,7.5974,131.61,131.59,37.47290916]
[1742401664642,13.96853636,131.63,131.59,29.87460916]
[1742401665349,13.96853636,131.63,131.59,37.47270916]
[1742401665845,7.5972,131.62,131.59,37.47270916]
[1742401666450,13.96853636,131.63,131.59,37.47270916]
[1742401666951,7.5969,131.62,131.59,37.47270916]
[1742401669247,7.5969,131.62,131.6,7.5978]
[1742401671346,7.5969,131.62,131.59,37.47270916]
[1742401671846,7.5969,131.62,131.6,7.5977]
[1742401672246,13.96853636,131.63,131.6,7.5977]
[1742401672948,7.597,131.62,131.59,37.47270916]
[1742401673944,7.5972,131.61,131.59,37.47270916]
[1742401674445,7.597,131.62,131.59,37.47270916]
[1742401674946,7.5974,131.61,131.59,37.47270916]
[1742401675247,13.96853636,131.63,131.59,37.47270916]
[1742401675645,7.5971,131.62,131.59,37.47270916]
[1742401676746,21.56483636,131.63,131.6,7.5975]
[1742401677045,13.96853636,131.63,131.6,7.5975]
[1742401677847,7.5969,131.62,131.6,7.5975]
[1742401678144,8.50344782,131.65,131.61,7.5972]
[1742401678340,7.5958,131.64,131.61,7.5972]
[1742401678545,7.5958,131.64,131.62,0.05735281]
[1742401679048,21.56463636,131.63,131.62,0.05735281]
[1742401681549,13.96853636,131.63,131.49,22.8116]
[1742401681757,13.96853636,131.59,131.55,29.76]
[1742401682754,0.0521351,131.58,131.56,0.05527652]
[1742401683449,7.5996,131.57,131.56,0.05527652]
[1742401684453,7.6018,131.54,131.52,13.96853636]
[1742401685255,13.96853636,131.55,131.51,43.72853636]
[1742401685556,0.04961624,131.54,131.52,0.04960924]
[1742401686055,0.04961624,131.54,131.52,29.80960924]
[1742401686554,7.65121624,131.54,131.52,29.80960924]
[1742401687154,0.04961624,131.54,131.52,43.7781456]
[1742401687356,1.9715,131.61,131.53,13.96853636]
[1742401687653,7.599,131.58,131.56,13.96853636]
[1742401687852,7.599,131.58,131.55,51.32893636]
[1742401688454,7.65087201,131.58,131.55,51.3873995]
[1742401688753,7.5996,131.57,131.55,43.7869995]
[1742401689049,0.05187201,131.58,131.55,43.7869995]
[1742401689358,7.65107201,131.58,131.55,51.3874995]
[1742401689549,0.05187201,131.58,131.55,29.81846314]
[1742401689750,7.6001,131.56,131.55,29.81846314]
[1742401690550,21.56863636,131.56,131.55,0.05846314]
[1742401692748,7.6001,131.56,131.55,0.05846314]
[1742401694357,21.56833636,131.57,131.55,0.05846314]
[1742401694656,7.5998,131.57,131.55,0.05846314]
[1742401694858,0.05187201,131.58,131.55,0.05846314]
[1742401695051,7.5998,131.57,131.55,0.05846314]
[1742401695351,0.05187201,131.58,131.55,0.05846314]
[1742401695548,7.6001,131.56,131.55,0.05846314]
[1742401696058,21.56863636,131.56,131.55,0.05846314]
[1742401698262,7.602,131.53,131.51,29.76]
[1742401699462,14.01676977,131.53,131.51,0.05752282]
[1742401700357,7.6024,131.52,131.51,0.05752282]
[1742401704868,14.01676977,131.53,131.51,0.05752282]
[1742401704869,7.65033341,131.53,131.51,0.05752282]
[1742401705263,0.04823341,131.53,131.52,43.70853636]
[1742401705565,13.96853636,131.57,131.52,43.70853636]
[1742401705762,13.96853636,131.57,131.53,13.96853636]
[1742401706060,7.601,131.55,131.52,51.31073636]
[1742401706561,7.65284161,131.55,131.52,51.36888495]
[1742401706766,7.65284161,131.55,131.53,7.6017]
[1742401708364,7.6015,131.54,131.52,51.36888495]
[1742401708563,0.05184161,131.55,131.52,43.76668495]
[1742401708763,0.05184161,131.55,131.52,29.79814859]
[1742401708968,7.6017,131.54,131.52,29.79814859]
[1742401709459,7.6019,131.53,131.52,29.79814859]
[1742401710469,7.6019,131.53,131.52,0.05814859]
[1742401710769,21.57043636,131.53,131.52,0.05814859]
[1742401711766,7.6019,131.53,131.52,0.05814859]
[1742401712066,13.96853636,131.53,131.46,18.23443636]
[1742401712265,13.96853636,131.49,131.44,43.70853636]
[1742401712568,7.6057,131.47,131.44,43.70853636]
[1742401712759,13.96853636,131.48,131.44,29.74]
[1742401713170,0.05746126,131.47,131.45,0.05641031]
[1742401713870,7.6059,131.46,131.45,0.05641031]
[1742401714669,7.66306126,131.47,131.45,0.05641031]
[1742401715172,0.05746126,131.47,131.45,0.05641031]
[1742401719370,7.6059,131.46,131.45,0.05641031]
[1742401719571,14.02599762,131.47,131.45,0.05641031]
[1742401719766,13.96853636,131.46,131.45,0.05641031]
[1742401719972,21.57443636,131.46,131.45,0.05641031]
[1742401720771,13.96853636,131.46,131.45,0.05641031]
[1742401722970,21.63159762,131.47,131.45,0.05641031]
[1742401723171,0.05746126,131.47,131.45,0.05641031]
[1742401727875,0.05746126,131.47,131.45,7.66281031]
[1742401728174,0.05746126,131.47,131.46,13.96853636]
[1742401728868,0.05746126,131.47,131.46,21.57443636]
[1742401730175,0.05746126,131.47,131.46,7.6059]
[1742401731779,1.52068126,131.52,131.46,13.96853636]
[1742401731978,1.52068126,131.52,131.5,13.96853636]
[1742401732180,1.52068126,131.52,131.51,7.603]
[1742401732478,1.52068126,131.52,131.5,13.96853636]
[1742401732678,1.52068126,131.52,131.49,43.70853636]
[1742401732878,1.56872682,131.52,131.5,7.65751454]
[1742401733679,1.56872682,131.52,131.51,7.603]
[1742401735481,1.56872682,131.52,131.5,7.65761454]
[1742401735981,7.603,131.51,131.5,0.05431454]
[1742401736479,21.57153636,131.51,131.5,0.05431454]
[1742401738183,7.603,131.51,131.5,0.05431454]
[1742401739284,21.57153636,131.51,131.5,0.05431454]
[1742401742086,7.603,131.51,131.5,0.05431454]
[1742401742383,9.17142682,131.52,131.5,0.05431454]
[1742401742882,1.56872682,131.52,131.5,7.65761454]
[1742401744287,15.53726318,131.52,131.5,0.05431454]
[1742401744791,7.603,131.51,131.5,0.05431454]
[1742401746091,21.57153636,131.51,131.5,0.05431454]
[1742401747486,21.57153636,131.51,131.46,31.8184]
[1742401747487,7.6049,131.48,131.46,31.8184]
[1742401747686,13.96853636,131.5,131.46,31.8184]
[1742401747887,7.6053,131.47,131.46,29.72]
[1742401748392,7.6053,131.47,131.44,13.96853636]
[1742401748593,7.65395683,131.48,131.45,37.36133914]
[1742401748892,0.04885683,131.48,131.45,43.7234755]
[1742401749092,0.04885683,131.48,131.45,29.75493914]
[1742401749694,7.65385683,131.48,131.45,37.36113914]
[1742401750790,0.04885683,131.48,131.45,29.75493914]
[1742401750990,0.04885683,131.48,131.46,13.96853636]
[1742401751795,0.04885683,131.48,131.47,7.6053]
[1742401752797,0.04885683,131.48,131.47,21.57383636]
[1742401753094,1.52068126,131.52,131.47,13.96853636]
[1742401753296,1.52068126,131.52,131.5,13.96853636]
[1742401753496,1.52068126,131.52,131.5,21.57203636]
[1742401753798,9.12338126,131.52,131.5,7.6035]
[1742401754096,9.18164424,131.52,131.5,7.65198976]
[1742401754597,9.18164424,131.52,131.5,0.04848976]
[1742401754797,7.603,131.51,131.5,0.04848976]
[1742401755396,1.57894424,131.52,131.5,0.04848976]
[1742401755597,0.05826298,131.52,131.51,13.96853636]
[1742401755793,0.05826298,131.52,131.51,43.66853636]
[1742401756397,0.05826298,131.52,131.51,51.27153636]
[1742401756597,13.96853636,131.57,131.52,13.96853636]
[1742401757100,7.6006,131.56,131.53,7.6015]
[1742401757301,21.56913636,131.56,131.53,7.6015]
[1742401757601,7.5999,131.57,131.54,7.601]
[1742401757791,0.03587203,131.56,131.54,7.601]
[1742401757996,0.03587203,131.56,131.53,14.0262892]
[1742401758198,7.63637203,131.56,131.53,7.65915284]
[1742401758499,7.63637203,131.56,131.53,0.05775284]
[1742401758800,7.63637203,131.56,131.53,7.65915284]
[1742401759603,7.63637203,131.56,131.54,7.6013]
[1742401759900,0.03587203,131.56,131.54,7.6013]
[1742401760500,0.03587203,131.56,131.55,7.6007]
[1742401765707,0.03587203,131.56,131.55,21.56923636]
[1742401765907,43.64853636,131.61,131.55,13.96853636]
[1742401766106,13.96853636,131.61,131.55,13.96853636]
[1742401766302,7.5987,131.59,131.55,13.96853636]
[1742401766506,7.5987,131.59,131.56,7.5999]
[1742401766907,7.5987,131.59,131.56,7.65693326]
[1742401768211,7.599,131.58,131.56,0.05703326]
[1742401768412,13.96853636,131.61,131.56,0.05703326]
[1742401768706,13.96853636,131.6,131.56,0.05703326]
[1742401769010,7.5996,131.57,131.56,0.05703326]
[1742401773113,7.5992,131.58,131.56,0.05703326]
[1742401773813,7.5996,131.57,131.56,0.05703326]
[1742401774013,13.96853636,131.59,131.56,0.05703326]
[1742401774418,7.5994,131.58,131.56,0.05703326]
[1742401776216,7.5996,131.57,131.56,0.05703326]
[1742401777016,13.96853636,131.6,131.56,7.65713326]
[1742401777215,13.96853636,131.6,131.56,14.02556962]
[1742401777516,7.5975,131.61,131.58,7.5987]
[1742401778819,13.96853636,131.61,131.57,29.66]
[1742401779517,7.5984,131.59,131.57,37.2593]
[1742401779722,13.96853636,131.61,131.57,29.66]
[1742401780021,13.96853636,131.58,131.56,0.05703326]
[1742401780217,13.96853636,131.57,131.51,29.66]
[1742401780521,13.96853636,131.55,131.51,29.66]
[1742401780822,13.96853636,131.55,131.51,37.2628]
[1742401781123,21.84882038,131.57,131.51,37.2628]
[1742401781325,7.64967774,131.54,131.52,0.05139436]
[1742401781523,0.04807774,131.54,131.52,0.05139436]
[1742401782022,7.6019,131.53,131.52,0.05139436]
[1742401786030,7.6019,131.53,131.52,9.436e-05]
[1742401786531,29.45072038,131.53,131.52,9.436e-05]
[1742401787031,59.11072038,131.53,131.52,9.436e-05]
[1742401788832,51.50882038,131.53,131.44,21.84882038]
[1742401789031,21.84882038,131.51,131.45,29.66]
[1742401789531,7.6044,131.49,131.45,37.2664]
[1742401790027,0.04965069,131.48,131.46,0.05111774]